Workbook

Sheet PF Revenue Adj
A1: WA Electric Revenue Normalization Adjustment--12-mo ended December 31, 2018
B3: $000's | G3: Total | H3: Pro Forma
A4: Rates Effective May 1st, 2018 | D4: CB Restated | F4: PF | G4: Adjust | H4: Revenue Adj
B5: Revenue | C5: WP Source | E5: WP Source
B6: Base Rate Revenue | C6: E-PREV-2 | D6: ='Reconcile ROO to Restated'!L5 -> 493175 | E6: E-PREV-5 | F6: =502705-280 -> 502425 | G6: =F6-D6 -> 9250 | H6: =ROUND(G6,0) -> 9250 | J6: Pro Forma includes Sch 25 unbilled in this total
B8: Weather Normalization | C8: E-PREV-2 | D8: ='Reconcile ROO to Restated'!L7 -> 2745 | E8: E-PREV-5 | F8: 2768 | G8: =F8-D8 -> 23 | H8: =ROUND(G8,0) -> 23
B10: Unbilled Revenue | C10: E-PREV-2 | D10: ='Reconcile ROO to Restated'!L17 -> 2150 | E10: E-PREV-5 | F10: -3174 | G10: -5324 | H10: =ROUND(G10,0) -> -5324 | J10: Schedule 25 Unbilled per books was $5,648
B11: Sales to Ultimate Consumers | D11: =SUM(D6:D10) -> 498070 | F11: =SUM(F6:F10) -> 502019 | G11: =IF(ROUND(F11-D11,3)<>ROUND(SUM(G6:G10),3),#VALUE!,SUM(G6:G10)) -> 3949 | H11: =SUM(H6:H10) -> 3949
B12: Other Revenue | F12: =IF(F11=ROUND('[1]Exh 1'!$D$28,0),"","check workpapers") -> 
B13: Decoupled Deferred Revenue | D13: ='Reconcile ROO to Restated'!L28 -> 13186.297 | F13: 0 | G13: -13186.297 | H13: =ROUND(G13,0) -> -13186 | J13: Elim 2018 Decoupling deferrals - GRC resets Base
B14: Provision For Rate Refund - Decoupling | D14: ='Reconcile ROO to Restated'!L30 -> 0 | F14: 0 | G14: =F14-D14 -> 0 | H14: =ROUND(G14,0) -> 0 | J14: Elim Decoupling Earnings Sharing in Test Period
B15: Provision For Rate Refund - Tax Reform | D15: ='Reconcile ROO to Restated'!L31 -> -8155 | F15: 0 | G15: 8155 | H15: =ROUND(G15,0) -> 8155 | J15: Elim Tax Reform Deferral (Jan - April)
B16: Total Rev. | D16: =SUM(D11:D15) -> 503101.297 | F16: =SUM(F11:F15) -> 502019 | G16: =SUM(G11:G15) -> -1082.297 | H16: =SUM(H11:H15) -> -1082
F17: 0
B18: Expense
B19: State Excise Tax | C19: CF | H19: =ROUND(H$11*$I19,0) -> 152 | I19: ='Reconcile ROO to Restated'!M49 -> 0.038587 | J19: Effective Rate
B20: Uncollectibles | C20: CF | H20: =ROUND(H$11*$I20,0) -> 15 | I20: ='Reconcile ROO to Restated'!M50 -> 0.003782 | J20: Effective Rate
B21: Commission Fees | C21: CF | H21: 8 | I21: ='Reconcile ROO to Restated'!M51 -> 0.002 | J21: Nominal Rate
H22: =SUM(H19:H21) -> 175 | I22: =SUM(I19:I21) -> 0.044369 | J22: Conver. Factor b4 FIT
B24: Operating Income before FIT | H24: =H16-H22 -> -1257
B25: FIT Expense | H25: =ROUND(H24*$I25,0) -> -264 | I25: 0.21 | J25: Diff
B26: Net Operating Income | H26: =H24-H25 -> -993
B28: * zero in Pro-forma revenues | I28: =H11 -> 3949 | J28: Revenue
I29: =I22 -> 0.044369 | J29: Conver. Factor b4 FIT
I30: =ROUND(I28*I29,0) -> 175 | J30: Rev related exp.
I31: =SUM(H19:H21) -> 175 | J31: check
I32: =I30-I31 -> 0

Sheet Reconcile ROO to Restated
A1: WA Electric Normalized Revenue --12-months ended December 31, 2018 | L1: Normalized Restated
B2: $000's | E2: Eliminate | F2: Weather | G2: Eliminate | H2: Misc | I2: Eliminate WA | J2: Commission Basis | K2: Total
D3: Actuals | E3: B&O Taxes | F3: Normalization | G3: Adder Sched | H3: Restating | I3: Power Cost Def | J3: Power Supply Adj | K3: Adjust | L3: Base Revenue
B4: Revenue | C4: WP Source | D4: 1 | E4: 2.01 | F4: 2.1 | G4: 2.11 | H4: 2.12 | I4: 2.13 | J4: 2.18
B5: Billed Base Rate Revenue | C5: Calc | D5: =D18-SUM(D8:D17) -> 493175 | K5: =SUM(E5:J5) -> 0 | L5: =D5+K5 -> 493175
L6: 0
B7: Weather Normalization | F7: 2745 | K7: =SUM(E7:J7) -> 2745 | L7: 2745 | M7: Weather adj excludes weather related revenue captured in decoupling mechanism (began January 2015)
B8: B&O Tax - Sch 58 | C8: B&O | D8: =-K8 -> 18620 | E8: -18620 | K8: -18620 | L8: 0
B9: BPA Residential Exchange Credit - Sch 59 | C9: Calc | D9: =-K9 -> -1996 | G9: =ROUND(G41*$M$53,0) -> 1996 | K9: 1996 | L9: 0
B10: Tax Reform Refund - Sch 74 | C10: Calc | D10: =-K10 -> -4110 | G10: =ROUND(G48*$M$53,0) -> 4110 | K10: 4110 | L10: 0
B11: Decoupling Amort - Sch 75 | C11: EAS-2 | D11: =-K11 -> 8794 | G11: =ROUND((-G27)*$M$53,0) -> -8794 | K11: =SUM(E11:J11) -> -8794 | L11: =D11+K11 -> 0
B12: Public Purpose Rider - Sch 89/91/92 | C12: Calc | D12: =-K12 -> 26479 | G12: =ROUND(G46*$M$53,0) -> -26479 | K12: -26479 | L12: 0
B13: Power Cost Surcharge - ERM Sch 93 | C13: EWPC | D13: 0 | I13: 0 | J13: 0 | K13: 0 | L13: 0
B14: BPA Capacity Support Rebate - Sch 94 | C14: Calc | D14: 0 | G14: =ROUND(G43*$M$53,0) -> 0 | K14: 0 | L14: 0
B15: Optional Renewable Power - Sch 95 | C15: Calc | D15: 195 | G15: =ROUND(G45*$M$53,0) -> -195 | K15: -195 | L15: 0
B16: REC Revenue Rebate - Sch 98 | C16: Calc | D16: =-K16 -> -2639 | G16: =ROUND(G39*$M$53,0) -> 0 | I16: =ROUND(I39*$M$53,0)+5 -> 2639 | K16: 2639 | L16: 0
B17: Unbilled Revenue | C17: ROO / Calc | D17: 2620 | G17: =ROUND((G38+G40+G42+G44+G47)*$M$53,0)+0 -> -470 | K17: -470 | L17: 2150
B18: Sales to Ultimate Consumers | C18: ROO | D18: 541138 | E18: =SUM(E5:E17) -> -18620 | F18: 2745 | G18: -29832 | H18: 0 | I18: 2639 | J18: 0 | K18: -43068 | L18: 498070 | M18: Rounding matches column B results
B20: Sales for Resale Revenue - ERM Related | C20: E-APS | D20: 59999 | J20: -24436 | K20: -24436 | L20: 35563
B21: Sales for Resale Revenue - Other | C21: Calc | D21: =D22-D20 -> 13 | K21: 0 | L21: 13 | O21: Solar Select
B22: Total Sales for Resale Revenue | C22: ROO | D22: 60012 | E22: =SUM(E20+E21) -> 0 | F22: =SUM(F20+F21) -> 0 | G22: 0 | H22: 0 | I22: 0 | J22: -24436 | K22: -24436 | L22: 35576
B24: Other Revenue - Misc | C24: ROO / Calc | D24: =60951-SUM(D25:D31) -> 1195 | K24: =SUM(E24:J24) -> 0 | L24: =D24+K24 -> 1195
B25: Other Revenue - ERM Related | C25: E-APS | D25: =67114-SUM(D27:D29)-688 -> 60930.051 | J25: -50972 | K25: =SUM(E25:J25) -> -50972 | L25: =D25+K25 -> 9958.051
B26: Other Revenue - From Electric Property | C26: ROO / B&O | D26: =1845+14 -> 1859 | E26: -13 | K26: =SUM(E26:J26) -> -13 | L26: =D26+K26 -> 1846
B27: Other Revenue - Decoupling Amortization | C27: ROO/EAS | D27: =(-7545365-857983)/1000 -> -8403.348 | G27: =-D27 -> 8403.348 | K27: =SUM(E27:J27) -> 8403.348 | L27: 0 | M27: Decoupling deferred revenue is net of revenue related expenses to be paid with recovery through surcharge or rebate in a later period.
B28: Other Revenue - Decoupling Deferred Revenue | C28: ROO/WN | D28: =(8398269+6898028)/1000 -> 15296.297 | F28: -2110 | K28: =SUM(E28:J28) -> -2110 | L28: 13186.297
B29: Other Revenue - Contra Decoupling Deferral | C29: ROO/EAS | D29: -1397 | G29: =-D29 -> 1397 | K29: =SUM(E29:J29) -> 1397 | L29: 0
B30: Provision For Rate Refund - Decoupling | C30: ROO/MR | D30: -374 | H30: 374 | K30: =SUM(E30:J30) -> 374 | L30: 0
B31: Provision For Rate Refund - Tax Reform | C31: ROO | D31: -8155 | K31: =SUM(E31:J31) -> 0 | L31: -8155
B32: Total Other Revenue | D32: =SUM(D24:D31) -> 60951 | E32: =SUM(E24:E31) -> -13 | F32: -2110 | G32: 9800.348 | H32: 374 | I32: 0 | J32: -50972 | K32: -42920.652 | L32: =SUM(L24:L31) -> 18030.348
B33: Total Revenue | D33: =D18+D20+D32 -> 662088 | E33: =E18+E20+E32 -> -18633 | F33: 635 | G33: -20031.652 | H33: 374 | I33: 2639 | J33: -75408 | K33: -110424.652 | L33: 551663.348
B35: Expense
B36: B&O Tax | C36: B&O | D36: =18664-83 -> 18581 | E36: -18544 | K36: =SUM(E36:J36) -> -18544 | L36: =D36+K36 -> 37
B37: Power Cost Surcharge Amort. - ERM | C37: EWPC | D37: 0 | I37: =-D37 -> 0 | K37: 0 | L37: 0 | M37: amort only; excluding deferrals
B38: Power Cost Surcharge Amort. - ERM Unbilled | C38: EAS-2 | D38: 0 | G38: =-D38 -> 0 | K38: 0 | L38: 0
B39: REC Rev Rebate Amort. | C39: EWPC | D39: -2517 | I39: =-D39 -> 2517 | K39: 2517 | L39: 0 | M39: amort only; excluding deferrals
B40: REC Rev Rebate Unbilled Amort | C40: EAS-2 | D40: 42 | G40: =-D40 -> -42 | K40: -42 | L40: 0
B41: BPA Residential Exchange | C41: EAS-2 | D41: -1907 | G41: =-D41 -> 1907 | K41: 1907 | L41: 0
B42: BPA Residential Exchange Unbilled | C42: EAS-2 | D42: 18 | G42: =-D42 -> -18 | K42: -18 | L42: 0
B43: BPA Capacity Support Amort | C43: EAS-2 | D43: 0 | G43: =-D43 -> 0 | K43: 0 | L43: 0 | M43: amort only; excluding deferrals
B44: BPA Capacity Support Unbilled | C44: EAS-2 | D44: 0 | G44: 0 | K44: 0 | L44: 0
B45: Optional Renewable Power - Revenue Offset | C45: EAS-2 | D45: 186 | G45: -186 | K45: -186 | L45: 0
B46: Public Purpose Rider | C46: EAS-2 | D46: 25304 | G46: -25304 | K46: -25304 | L46: 0
B47: Public Purpose Rider Unbilled | C47: EAS-2 | D47: 389 | G47: -389 | K47: -389 | L47: 0
B48: Tax Reform Amortization | C48: EAS-2 | D48: -3928 | G48: 3928 | K48: 3928 | L48: 0
B49: State Excise Tax | C49: CF | D49: =ROUND(D$18*$M49,0) -> 20881 | F49: =ROUND(F$18*$M49,0) -> 106 | G49: -1151 | H49: 0 | I49: 102 | J49: 0 | K49: -943 | L49: 19938 | M49: ='[2]CF '!$E$16 -> 0.038587 | N49: Effective Rate
B50: Uncollectibles | C50: CF | D50: =ROUND(D$18*$M50,0) -> 2047 | F50: 10 | G50: -113 | H50: 0 | I50: =ROUND(I$18*$M50,0)+5 -> 15 | J50: 0 | K50: -88 | L50: 1959 | M50: ='[2]CF '!$E$12 -> 0.003782 | N50: Effective Rate
B51: Commission Fees | C51: CF | D51: =ROUND(D$18*$M51,0) -> 1082 | F51: 5 | G51: -60 | H51: 0 | I51: 5 | J51: 0 | K51: -50 | L51: 1032 | M51: ='[2]CF '!$E$14 -> 0.002 | N51: Nominal Rate
D52: =SUM(D36:D51) -> 60178 | E52: =SUM(E36:E51) -> -18544 | F52: 121 | G52: -21428 | H52: =SUM(H36:H51) -> 0 | I52: 2639 | J52: 0 | K52: -37212 | L52: =SUM(L37:L51) -> 22929 | M52: =SUM(M49:M51) -> 0.044369 | N52: Conver. Factor b4 FIT
M53: =1/(1-M52) -> 1.046429009 | N53: Expense Gross Up Factor
B54: Net Revenue | D54: =D33-D52 -> 601910 | E54: =E33-E52 -> -89 | F54: 514 | G54: 1396.348 | H54: 374 | I54: =I33-I52 -> 0 | J54: -75408 | K54: -73212.652 | L54: 528734.348

Sheet 2010 (hidden)
A1: WA Electric Revenue Normalization Adjustment--12-mo ended Dec 2010 | E1: Total | F1: Revenue
C2: Actuals | D2: Pro-Forma | E2: Adjust | F2: Norm. Adj.
B3: Revenue
B4: Base Rate Revenue | C4: =C14-SUM(C7:C13) -> 400549 | D4: 430547 | E4: =D4-C4 -> 29998 | F4: =E4 -> 29998
B6: Weather Normalization | D6: 5305 | E6: =D6-C6 -> 5305 | F6: =E6 -> 5305
B7: B&O Tax - Sch 58 | C7: 14789 | D7: 0 | E7: =D7-C7 -> -14789 | F7: Adj. T
B8: BPA Residential Exchange Credit - Sch 59 | C8: =ROUND(C22/(1-G29),0) -> -6622 | D8: 0 | E8: =D8-C8 -> 6622 | F8: =E8 -> 6622
B9: Public Purpose Rider - Sch 91 | C9: =ROUND(C25/(1-G30),0) -> 20489 | D9: 0 | E9: =D9-C9 -> -20489 | F9: =E9 -> -20489
B10: Power Cost Surcharge - ERM Sch 93 | C10: 7113 | D10: 0 | E10: =D10-C10 -> -7113 | F10: Adj. Z
B11: Optional Renewable Power - Sch 95 | C11: 179 | D11: 0 | E11: =D11-C11 -> -179 | F11: Adj. AI
B12: Special Contract Revenue | C12: 337 | D12: 0 | E12: -337 | F12: =E12 -> -337
B13: Unbilled Revenue | C13: -2426 | D13: -2845 | E13: =D13-C13 -> -419 | F13: =E13 -> -419
B14: Sales to Ultimate Consumers | C14: 434408 | D14: =SUM(D4:D13) -> 433007 | E14: =IF(ROUND(D14-C14,3)<>ROUND(SUM(E4:E13),3),#VALUE!,SUM(E4:E13)) -> -1401 | F14: =SUM(F4:F13) -> 20680 | G14: Rounding matches column B results
B15: Special Contract--transfer to Other Op Rev. | C15: 0 | D15: 337 | E15: =D15-C15 -> 337 | F15: =E15 -> 337 | G15: Sch 28 Waste-to-Egy
B16: Total Rev. | C16: =C14+C15 -> 434408 | D16: =D14+D15 -> 433344 | E16: =IF(ROUND(E14+E15,3)<>ROUND(D16-C16,3),#VALUE!,E14+E15) -> -1064 | F16: =F14+F15 -> 21017
D17: -433007
B18: Expense
B19: B&O Tax | C19: =ROUND((14849283-88660)/1000,0) -> 14761 | D19: 0 | E19: =D19-C19 -> -14761 | F19: Adj. T
B20: Power Cost Surcharge Amort. - ERM | C20: 6276 | D20: 0 | E20: -6276 | F20: Adj. Z | G20: amort only; excluding deferrals
B21: Power Cost Surcharge Amort. - ERM Unbilled | C21: -2740 | D21: 0 | E21: 2740 | F21: =E21 -> 2740
B22: BPA Residential Exchange | C22: -6609 | D22: 0 | E22: 6609 | F22: =E22 -> 6609
B23: BPA Residential Exchange Unbilled | C23: =ROUND(-(6243901)/1000,0)-C22 -> 365 | D23: 0 | E23: -365 | F23: =E23 -> -365
B24: Optional Renewable Power - Revenue Offset | C24: 160 | D24: 0 | E24: =D24-C24 -> -160 | F24: Adj. AI
B25: Public Purpose Rider | C25: 19583 | D25: 0 | E25: -19583 | F25: =E25 -> -19583
B26: Public Purpose Rider Unbilled | C26: =ROUND((19582839-100077)/1000,0)-C25 -> -100 | D26: 0 | E26: 100 | F26: =E26 -> 100
B27: State Excise Tax | F27: =ROUND(F$16*$G27,0) -> 811 | G27: 0.03859 | H27: Effective Rate
B28: Uncollectibles | F28: =ROUND(F$16*$G28,0) -> 76 | G28: 0.003618 | H28: Effective Rate
B29: Commission Fees | F29: =ROUND(F$16*$G29,0) -> 42 | G29: 0.002 | H29: Nominal Rate
F30: =SUM(F19:F29) -> -9570 | G30: =SUM(G27:G29) -> 0.044208 | H30: Conver. Factor b4 FIT
B32: Operating Income before FIT | F32: =F16-F30 -> 30587
B33: FIT Expense | F33: =ROUND(F32*$G33,0) -> 10705 | G33: 0.35 | H33: Diff
B34: Net Operating Income | F34: =F32-F33 -> 19882
B36: * zero in Pro-forma revenues | G36: =F16 -> 21017 | H36: Revenue
G37: =G30 -> 0.044208 | H37: Conver. Factor b4 FIT
G38: =ROUND(G36*G37,0) -> 929 | H38: Rev related exp.
G39: =SUM(F27:F29) -> 929 | H39: check
G40: =G38-G39 -> 0
B42: for Commission Basis Adjustments file:
B43: REVENUES
A44: 1 | B44: Total General Business | F44: =ROUND(F14,0) -> 20680
A45: 5 | B45: Other Revenue | F45: =ROUND(F15,0) -> 337
B47: EXPENSES
B48: Production and Transmission
A49: 7 | B49: Operating Expenses | F49: =ROUND(F21,0) -> 2740
A50: 9 | B50: Depreciation and Amortization | F50: =ROUND(F22+F23,0) -> 6244
B52: Distribution
A53: 14 | B53: Taxes | F53: =ROUND(F27,0) -> 811
A55: 16 | B55: Customer Accounting | F55: =ROUND(F28,0) -> 76
A56: 17 | B56: Customer Service & Information | F56: =ROUND(F25+F26,0) -> -19483
B58: Administrative & General
A59: 19 | B59: Operating Expenses | F59: =ROUND(F29,0) -> 42
B61: FEDERAL INCOME TAX
A62: 25 | B62: Current Accrual | F62: =ROUND((F44+F45-SUM(F49:F59))*G33,0) -> 10705
A64: 27 | B64: NET OPERATING INCOME | F64: =F44+F45-SUM(F47:F62) -> 19882
F65: =ROUND(F64-F34,0) -> 0

Sheet 2010 Component Analysis (hidden)
A1: Avista Utilities
A2: Docket No. UE-110876 & UG-110877
A3: Response to Staff Data Request No. 224
A4: Electric
A6: Electric Revenue Normalization Adjustment Segregated Components
C7: Eliminate Adder Schedules | H7: Transfer
A8: $000's | C8: B & O Tax Revenue Sch 58 | D8: Residential Exchange Sch 59 | E8: Pub Purp Tariff Rider Sch 91 | F8: ERM Surcharge Sch 93 | G8: Sch 95 | H8: Special Contract | I8: Re-pricing Billed Revenue | J8: Unbilled Revenue (1) | K8: Weather Normalization | L8: Total
A9: REVENUES
A10: Pro forma Gen Bus Revenue | I10: 430547 | J10: -2845 | K10: 5305 | L10: =SUM(C10:K10) -> 433007
A11: Actual Gen Bus Revenue | C11: 14789 | D11: -6915 | E11: 20489 | F11: 7113 | G11: 179 | H11: 337 | I11: =434408-C11-D11-E11-F11-H11-J11-G11 -> 400842 | J11: -2426 | L11: =SUM(C11:K11) -> 434408
A12: General Business Revenue Adjustment | C12: Adj T | D12: =D10-D11 -> 6915 | E12: -20489 | F12: Adj Z | G12: Adj Al | H12: -337 | I12: =I10-I11 -> 29705 | J12: -419 | K12: 5305 | L12: =SUM(C12:K12) -> 20680
A14: Other Revenue Adjustment | H14: 337 | L14: =SUM(C14:K14) -> 337
A16: Total Revenue Adjustment | D16: =D12+D14 -> 6915 | E16: =E12+E14 -> -20489 | H16: =H12+H14 -> 0 | I16: =I12+I14 -> 29705 | J16: =J12+J14 -> -419 | K16: =K12+K14 -> 5305 | L16: =L12+L14 -> 21017
A19: EXPENSES
A20: Pro Forma Expense | C20: 0 | D20: 0 | E20: 0 | F20: 0 | H20: 0 | I20: 0 | J20: 0 | K20: 0 | L20: =SUM(C20:K20) -> 0
A22: B&O Tax | C22: 14761 | L22: Adj T
A23: Optional Renewable Power - Rev Offset | G23: 160 | L23: Adj Al
A24: Power Cost Surcharge Amort - ERM | F24: 6276 | L24: Adj Z
A25: Power Cost Surcharge Amort - ERM Unbilled | J25: -2740 | L25: =SUM(C25:K25) -> -2740
A26: BPA Residential Exchange Amort | D26: -6609 | L26: =SUM(C26:K26) -> -6609
A27: BPA Residential Exchange Amort unbilled | J27: 365 | L27: =SUM(C27:K27) -> 365
A28: Public Purpose Rider Offset Expense | E28: 19583 | L28: =SUM(C28:K28) -> 19583
A29: Public Purpose Rider Offset Expense Unbilled | J29: -100 | L29: =SUM(C29:K29) -> -100
A30: Actual per Books Expense | C30: Adj T | D30: =SUM(D22:D29) -> -6609 | E30: 19583 | F30: Adj X | G30: Adj Al | H30: 0 | I30: 0 | J30: -2475 | K30: 0 | L30: =SUM(L22:L29) -> 10499
A32: Expense Adjustment | D32: =D20-D30 -> 6609 | E32: =E20-E30 -> -19583 | H32: =H20-H30 -> 0 | I32: 0 | J32: =J20-J30 -> 2475 | K32: 0 | L32: =SUM(C32:K32) -> -10499
A34: State Excise Tax | B34: 0.03859 | C34: =C$16*$B34 -> 0 | D34: =D$16*$B34 -> 266.84985 | E34: =E$16*$B34 -> -790.67051 | F34: =F$16*$B34 -> 0 | G34: =G$16*$B34 -> 0 | H34: 0 | I34: =I$16*$B34 -> 1146.31595 | J34: -16.16921 | K34: 204.71995 | L34: =SUM(C34:K34) -> 811.04603
A35: Uncollectibles | B35: 0.003618 | C35: =C$16*$B35 -> 0 | D35: =D$16*$B35 -> 25.01847 | E35: -74.129202 | F35: 0 | G35: 0 | H35: 0 | I35: 107.47269 | J35: -1.515942 | K35: 19.19349 | L35: =SUM(C35:K35) -> 76.039506
A36: Commission Fees | B36: 0.002 | C36: 0 | D36: 13.83 | E36: -40.978 | F36: 0 | G36: 0 | H36: 0 | I36: 59.41 | J36: -0.838 | K36: 10.61 | L36: =SUM(C36:K36) -> 42.034
A38: Total Expense Adjustment | C38: =SUM(C32:C36) -> 0 | D38: =SUM(D32:D36) -> 6914.69832 | E38: =SUM(E32:E36) -> -20488.77771 | F38: 0 | G38: 0 | H38: 0 | I38: 1313.19864 | J38: 2456.476848 | K38: 234.52344 | L38: -9569.880464
A40: Operating Income before FIT | C40: =C16-C38 -> 0 | D40: =D16-D38 -> 0.30168 | E40: =E16-E38 -> -0.222288 | F40: =F16-F38 -> 0 | G40: =G$16*$B40 -> 0 | H40: 0 | I40: 28391.80136 | J40: -2875.476848 | K40: 5070.47656 | L40: 30586.88046
A41: FIT Expense | B41: 0.35 | C41: =C40*$B$41 -> 0 | D41: =D40*$B$41 -> 0.105588 | E41: =E40*$B$41 -> -0.0778008 | F41: =F40*$B$41 -> 0 | G41: =G$16*$B41 -> 0 | H41: 0 | I41: 9937.130476 | J41: -1006.416897 | K41: 1774.666796 | L41: 10705.40816
A42: Net Operating Income | C42: Adj T | D42: =D40-D41 -> 0.196092 | E42: -0.1444872 | F42: Adj X | G42: Adj Al | H42: 0 | I42: 18454.67088 | J42: -1869.059951 | K42: 3295.809764 | L42: =(L40-L41)+1 -> 19882.4723
A44: (1) Adder schedule revenues in unbilled are segregated on workpapers TLK-R-19
